bitfinex/quotes_SOLUSD_20250818
["timestamp","ask_amount","ask_price","bid_price","bid_amount"]
[1755535149977,0.06,182.47,182.46,56.09614015]
[1755535150405,0.06,182.47,182.46,71.20235572]
[1755535150784,0.06,182.48,182.47,15.10621557]
[1755535150982,0.2,182.5,182.47,25.48973772]
[1755535151179,0.2,182.5,182.49,24.25170243]
[1755535151372,1e-08,182.5,182.49,24.25170243]
[1755535151597,1e-08,182.5,182.49,24.94170243]
[1755535152099,1e-08,182.52,182.51,15.10621557]
[1755535152304,1e-08,182.52,182.51,64.99170243]
[1755535152506,1e-08,182.54,182.51,66.22961761]
[1755535152676,1e-08,182.54,182.53,9.14548686]
[1755535152999,1e-08,182.54,182.53,50.433342]
[1755535153174,1e-08,182.54,182.53,66.22955757]
[1755535153374,1e-08,182.58,182.57,24.25170243]
[1755535153596,1e-08,182.58,182.57,64.99170243]
[1755535153968,1e-08,182.58,182.57,9.14548686]
[1755535154210,1e-08,182.58,182.57,46.19735115]
[1755535154497,1e-08,182.58,182.57,55.34283801]
[1755535154699,1e-08,182.58,182.57,5.47735115]
[1755535154902,1e-08,182.58,182.57,46.17735115]
[1755535155275,1e-08,182.58,182.57,40.7]
[1755535155276,0.70000001,182.58,182.57,40.7]
[1755535156584,9.84548687,182.58,182.5,15.10621557]
[1755535156793,9.14548686,182.55,182.51,40.68]
[1755535156988,0.7,182.55,182.51,49.82548686]
[1755535157197,9.84548686,182.55,182.51,40.68]
[1755535157398,0.7,182.54,182.51,40.68]
[1755535157702,9.14548686,182.52,182.5,5.47945205]
[1755535157879,3.64580946,182.56,182.52,40.66]
[1755535158081,3.64580946,182.57,182.52,40.66]
[1755535158302,3.64580946,182.56,182.52,40.66]
[1755535158496,0.7,182.55,182.52,40.66]
[1755535159109,9.14548686,182.53,182.52,40.66]
[1755535159423,9.84548686,182.53,182.43,15.10621557]
[1755535159577,9.14548686,182.45,182.44,40.68]
[1755535160586,9.14548686,182.46,182.44,46.16125411]
[1755535161513,0.7,182.47,182.44,46.16125411]
[1755535161514,9.14548686,182.5,182.45,24.94170243]
[1755535161702,9.14548686,182.52,182.47,9.14548686]
[1755535161904,9.14548686,182.53,182.48,41.33]
[1755535162108,0.7,182.53,182.49,40.64]
[1755535162288,9.84548686,182.53,182.49,40.64]
[1755535162491,9.84548686,182.53,182.5,5.47945205]
[1755535162815,9.84548686,182.53,182.51,40.64]
[1755535163184,9.14548686,182.52,182.51,40.64]
[1755535163584,9.84548686,182.53,182.51,40.64]
[1755535164304,9.14548686,182.52,182.51,40.64]
[1755535164704,4.3372684,182.56,182.51,46.11915182]
[1755535165020,9.14548686,182.55,182.51,46.80915182]
[1755535165185,9.14548686,182.56,182.51,78.35463868]
[1755535165388,9.14548686,182.56,182.51,69.20915182]
[1755535165895,3.63726841,182.58,182.51,68.51915182]
[1755535166091,9.84548686,182.55,182.51,68.51915182]
[1755535166691,9.14548686,182.56,182.51,68.51915182]
[1755535166916,9.84548686,182.56,182.51,69.20915182]
[1755535167212,9.14548687,182.58,182.52,9.83548686]
[1755535167414,1e-08,182.58,182.53,49.70548686]
[1755535167598,1e-08,182.58,182.53,50.39548686]
[1755535167933,1e-08,182.58,182.55,9.14548686]
[1755535168220,1e-08,182.58,182.57,9.14548686]
[1755535168629,1e-08,182.58,182.57,9.83548686]
[1755535168921,1e-08,182.58,182.57,24.94170243]
[1755535169110,1e-08,182.58,182.57,30.41905358]
[1755535170336,1e-08,182.58,182.57,21.27356672]
[1755535170491,1e-08,182.58,182.57,61.10356672]
[1755535170695,1e-08,182.58,182.57,5.47735115]
[1755535171013,1e-08,182.58,182.57,45.99735115]
[1755535173223,0.70000001,182.58,182.57,40.52]
[1755535173518,9.84548687,182.58,182.57,40.52]
[1755535174022,9.84548687,182.58,182.55,40.48]
[1755535174228,9.14548686,182.56,182.55,40.48]
[1755535174628,1e-08,182.58,182.55,40.48]
[1755535175131,9.14548686,182.57,182.56,5.47765118]
[1755535175311,9.14548686,182.57,182.56,45.95765118]
[1755535175928,9.14548687,182.58,182.56,45.95765118]
[1755535176507,1e-08,182.58,182.56,45.95765118]
[1755535177330,9.14548686,182.57,182.56,45.95765118]
[1755535177510,0.70000001,182.58,182.56,40.48]
[1755535177718,9.14548686,182.57,182.56,45.95764372]
[1755535178027,9.83548686,182.57,182.53,27.87832003]
[1755535178329,9.14548686,182.54,182.53,27.87832003]
[1755535178533,9.83548686,182.54,182.5,0.03]
[1755535178713,9.14548686,182.53,182.51,40.48]
[1755535179324,9.14548686,182.53,182.51,45.95909982]
[1755535179528,0.69,182.52,182.51,40.48]
[1755535179821,0.69,182.55,182.5,22.43]
[1755535180023,9.14548686,182.51,182.5,0.03]
[1755535180328,9.14548686,182.51,182.5,40.49]
[1755535181101,9.14548686,182.51,182.5,45.96945205]
[1755535181612,5.47742002,182.57,182.5,45.96945205]
[1755535181613,9.14548686,182.52,182.5,45.96945205]
[1755535181827,9.14548686,182.53,182.5,45.96945205]
[1755535182526,9.14548686,182.53,182.51,0.69]
[1755535182738,1e-08,182.58,182.52,41.13]
[1755535182739,0.69000001,182.58,182.52,41.13]
[1755535182934,9.14548686,182.57,182.52,50.27548686]
[1755535183231,1e-08,182.58,182.53,9.83548686]
[1755535183418,1e-08,182.58,182.55,5.47795124]
[1755535183739,9.14548686,182.57,182.56,40.44]
[1755535184638,9.83548686,182.57,182.56,40.44]
[1755535185427,9.83548686,182.57,182.5,0.03]
[1755535185640,9.14548686,182.52,182.5,0.03]
[1755535185937,9.14548686,182.55,182.51,46.60915182]
[1755535186430,9.14548686,182.54,182.51,46.60915182]
[1755535186638,26.69000001,182.58,182.52,0.69]
[1755535186639,9.14548686,182.55,182.52,0.69]
[1755535186808,9.14548686,182.55,182.53,40.44]
[1755535187242,9.14548686,182.54,182.53,40.44]
[1755535187427,0.69,182.55,182.53,45.91839381]
[1755535187627,9.14548686,182.56,182.53,46.60839381]
[1755535188141,9.14548686,182.55,182.53,45.91839381]
[1755535188643,12.79350105,182.57,182.54,0.69]
[1755535188807,3.64801419,182.57,182.55,40.42]
[1755535189014,9.14548686,182.56,182.55,40.42]
[1755535190423,3.65291333,182.56,182.55,46.58795124]
[1755535190631,1e-08,182.58,182.55,55.7334381]
[1755535190818,1e-08,182.58,182.55,45.89795124]
[1755535191418,3.65613335,182.57,182.55,45.89795124]
[1755535191745,9.14548687,182.58,182.55,45.89795124]
[1755535191941,3.65671882,182.57,182.55,45.89795124]
[1755535192115,1e-08,182.58,182.55,45.89795124]
[1755535192317,3.65671882,182.57,182.56,0.69]
[1755535192943,3.65671882,182.57,182.55,45.89795124]
[1755535193249,12.80353155,182.56,182.54,22.4]
[1755535193546,9.14548686,182.55,182.54,22.4]
[1755535193749,9.14548686,182.55,182.54,68.29825134]
[1755535193938,9.14548686,182.56,182.54,68.29825134]
[1755535194314,9.14548686,182.56,182.55,40.42]
[1755535194530,12.80417792,182.56,182.55,40.42]
[1755535194735,16.86940467,182.56,182.54,62.8]
[1755535194930,12.80417792,182.55,182.54,40.4]
[1755535195139,13.49417792,182.55,182.54,40.4]
[1755535195751,23.03771502,182.55,182.53,0.03]
[1755535195940,13.49417792,182.54,182.53,0.03]
[1755535197445,3.65869106,182.54,182.53,0.03]
[1755535197626,12.80417792,182.54,182.53,0.03]
[1755535198158,3.65869106,182.54,182.53,0.03]
[1755535198334,12.80417792,182.54,182.53,0.03]
[1755535201574,3.65869106,182.54,182.53,0.72]
[1755535201729,12.80397733,182.57,182.53,0.72]
[1755535202070,12.80397733,182.56,182.54,40.3]
[1755535202224,13.49397733,182.55,182.53,0.03]
[1755535202562,3.65849047,182.54,182.53,40.33]
[1755535202764,35.14548686,182.56,182.53,41.02]
[1755535202926,3.65819813,182.55,182.53,41.02]
[1755535203130,9.14548686,182.56,182.53,41.02]
[1755535203355,3.65831464,182.55,182.53,41.02]
[1755535203550,1e-08,182.58,182.54,15.3137382]
[1755535203738,3.65871393,182.57,182.55,55.42621557]
[1755535203934,9.14548687,182.58,182.55,56.11621557]
[1755535204146,3.65877275,182.57,182.55,56.11621557]
[1755535204334,9.14548686,182.57,182.55,40.32]
[1755535204536,9.14548686,182.57,182.56,40.34]
[1755535204842,9.14548686,182.57,182.53,0.72]
[1755535204843,13.49444129,182.57,182.53,5.50854518]
[1755535205046,9.14548686,182.54,182.53,5.50854518]
[1755535205251,9.14548686,182.54,182.53,45.82854518]
[1755535205571,12.80444129,182.54,182.53,45.82854518]
[1755535206057,3.65895443,182.54,182.53,45.82854518]
[1755535206356,9.14548686,182.56,182.53,46.51854518]
[1755535206658,3.66233861,182.55,182.53,46.51854518]
[1755535206872,9.14548686,182.57,182.53,46.51854518]
[1755535207162,3.66241959,182.56,182.53,46.51854518]
[1755535207357,12.80790645,182.55,182.53,45.82854518]
[1755535207559,26.0,182.57,182.53,0.03]
[1755535207560,13.51790645,182.54,182.53,0.03]
[1755535207931,17.58607975,182.54,182.53,0.03]
[1755535208541,17.58611424,182.54,182.53,0.03]
[1755535209462,13.51790645,182.54,182.53,0.03]
[1755535210262,17.58619459,182.54,182.53,0.03]
[1755535210845,17.58429398,182.54,182.53,0.03]
[1755535212044,17.58225069,182.54,182.53,0.03]
[1755535212258,16.87225069,182.54,182.53,0.03]
[1755535212454,12.80790645,182.54,182.53,0.03]
[1755535212658,13.51790645,182.54,182.53,0.03]
[1755535212976,22.14320552,182.54,182.53,0.03]
[1755535213263,16.87120265,182.54,182.53,0.03]
[1755535213452,12.80790645,182.54,182.53,0.03]
[1755535214143,3.66241959,182.54,182.53,0.03]
[1755535214578,3.66241959,182.54,182.53,0.71]
[1755535215464,1e-08,182.58,182.53,15.81621557]
[1755535215666,9.14548686,182.55,182.54,40.24]
[1755535215873,13.51676762,182.55,182.54,40.24]
[1755535216169,12.80676762,182.55,182.54,40.24]
[1755535216751,3.66128076,182.55,182.54,46.39825134]
[1755535217776,12.80676762,182.55,182.54,45.71825134]
[1755535218459,3.66128076,182.55,182.54,70.64995377]
[1755535218647,1e-08,182.58,182.55,15.10621557]
[1755535218851,1e-08,182.58,182.57,15.10621557]
[1755535219051,1e-08,182.58,182.57,55.36621557]
[1755535219251,1e-08,182.58,182.57,65.19170243]
[1755535219980,1e-08,182.58,182.57,70.64905358]
[1755535221268,1e-08,182.58,182.57,61.50356672]
[1755535221458,1e-08,182.58,182.57,70.64905358]
[1755535221772,1e-08,182.58,182.57,45.75735115]
[1755535221968,3.66220279,182.58,182.57,45.75735115]
[1755535222847,12.80768965,182.58,182.57,40.28]
[1755535223467,3.66220279,182.58,182.57,45.75735115]
[1755535223678,3.66220279,182.58,182.57,40.28]
[1755535224249,3.66220279,182.58,182.57,45.75735115]
[1755535224470,3.66220279,182.58,182.57,40.28]
[1755535224669,13.51768965,182.58,182.54,0.03]
[1755535224873,3.66220278,182.57,182.55,40.22]
[1755535225185,3.66220278,182.56,182.55,40.22]
[1755535226251,12.80768964,182.56,182.55,40.22]
[1755535227270,13.51768964,182.56,182.55,40.22]
[1755535227466,13.51768964,182.56,182.54,0.03]
[1755535227682,13.51768964,182.55,182.54,40.21]
[1755535227909,13.51768964,182.55,182.54,0.03]
[1755535227910,17.59118733,182.55,182.54,0.03]
[1755535228502,44.99564088,182.55,182.54,0.03]
[1755535228679,53.62921,182.55,182.54,0.03]
[1755535228854,49.06720713,182.55,182.54,0.03]
[1755535229058,43.58925589,182.55,182.54,0.03]
[1755535229891,42.87925589,182.55,182.54,0.03]
[1755535230089,43.58925589,182.55,182.54,0.03]
[1755535230875,42.87925589,182.55,182.54,0.03]
[1755535231275,43.58925589,182.55,182.54,0.03]
[1755535231895,39.51768964,182.55,182.54,0.03]
[1755535232197,16.87956017,182.55,182.54,0.03]
[1755535232406,3.66220278,182.55,182.54,40.17]
[1755535232569,3.66220278,182.55,182.54,40.85]
[1755535234686,3.66220278,182.55,182.54,68.72825134]
[1755535234895,9.14548687,182.58,182.54,68.72825134]
[1755535235096,3.66498289,182.57,182.55,0.68]
[1755535235289,9.14548687,182.58,182.54,68.04825134]
[1755535235290,3.66498289,182.56,182.54,68.04825134]
[1755535235484,1e-08,182.58,182.55,15.10621557]
[1755535235686,3.66505313,182.57,182.55,24.25170243]
[1755535235990,1e-08,182.58,182.56,0.68]
[1755535236301,1e-08,182.58,182.57,40.14]
[1755535236482,3.66490287,182.58,182.57,40.14]
[1755535237006,3.66490287,182.58,182.57,45.61735115]
[1755535237378,13.52038973,182.58,182.57,40.14]
[1755535237583,13.52038973,182.58,182.54,22.43]
[1755535237795,9.14548686,182.55,182.54,62.57]
[1755535238003,12.81038972,182.55,182.54,40.17]
[1755535238303,13.51038972,182.55,182.54,0.03]
[1755535239189,12.81038972,182.55,182.54,0.03]
[1755535241786,12.81038972,182.55,182.54,0.74]
[1755535241990,3.66490286,182.55,182.54,0.03]
[1755535242687,3.66490286,182.55,182.54,0.74]
[1755535243006,3.66490286,182.55,182.54,31.50825134]
[1755535243177,13.51038972,182.55,182.54,0.03]
[1755535244098,4.36490286,182.55,182.54,0.03]
[1755535244303,13.51038972,182.55,182.54,0.03]
[1755535244801,12.81038972,182.55,182.54,0.03]
[1755535245583,3.66490286,182.55,182.54,0.03]
[1755535246005,3.66490286,182.55,182.54,15.84621557]
[1755535246199,1e-08,182.58,182.54,24.99170243]
[1755535246389,3.66459432,182.57,182.55,40.85]
[1755535246603,3.66459432,182.56,182.55,40.85]
[1755535246803,3.66459432,182.56,182.55,40.14]
[1755535247115,1e-08,182.58,182.56,15.10621557]
[1755535247410,1e-08,182.58,182.56,15.81621557]
[1755535248119,1e-08,182.58,182.57,0.71]
[1755535248286,1e-08,182.58,182.57,24.96170243]
[1755535248990,1e-08,182.58,182.57,30.43905358]
[1755535249811,1e-08,182.58,182.57,21.29356672]
[1755535249992,1e-08,182.58,182.57,5.47735115]
[1755535250306,1e-08,182.58,182.57,45.59735115]
[1755535250878,0.70000001,182.58,182.57,45.59735115]
[1755535251077,3.66259401,182.58,182.57,45.59735115]
[1755535251279,1e-08,182.58,182.57,45.59735115]
[1755535252892,0.70000001,182.58,182.57,45.59735115]
[1755535253599,1e-08,182.58,182.57,70.55905358]
[1755535254392,1e-08,182.58,182.57,92.95905358]
[1755535255394,1e-08,182.59,182.58,15.10621557]
[1755535255609,1e-08,182.59,182.58,30.43875358]
[1755535256017,1e-08,182.59,182.58,21.29326672]
[1755535256430,1e-08,182.59,182.58,30.43875358]
[1755535257015,1e-08,182.59,182.58,5.47705115]
[1755535257219,9.84548687,182.59,182.58,45.59705115]
[1755535257512,0.70000001,182.59,182.58,45.59705115]
[1755535257826,1e-08,182.59,182.58,45.59705115]
[1755535258831,9.14548687,182.59,182.57,5.47727274]
[1755535259000,9.84548686,182.58,182.57,40.12]
[1755535260333,9.14548687,182.59,182.57,40.12]
[1755535260525,1e-08,182.59,182.57,40.12]
[1755535261245,1e-08,182.59,182.58,6.18705115]
[1755535262046,1e-08,182.59,182.58,21.29326672]
[1755535262219,1e-08,182.59,182.58,52.83875358]
[1755535262555,1e-08,182.59,182.58,43.69326672]
[1755535262753,1e-08,182.59,182.58,52.83875358]
[1755535265027,1e-08,182.59,182.58,42.98326672]
[1755535265222,1e-08,182.59,182.58,83.10326672]
[1755535265835,1e-08,182.59,182.58,83.81326672]
[1755535266226,1e-08,182.59,182.58,83.10326672]
[1755535266936,1e-08,182.59,182.58,67.99705115]
[1755535267528,1e-08,182.59,182.58,92.92875358]
[1755535268626,1e-08,182.59,182.58,83.78326672]
[1755535269420,1e-08,182.59,182.58,92.92875358]
[1755535272434,1e-08,182.59,182.58,89.56155446]
[1755535272747,1e-08,182.59,182.58,89.59155446]
[1755535274662,0.06,182.62,182.59,15.10621557]
[1755535274827,1e-08,182.62,182.61,15.10621557]
[1755535275026,1e-08,182.62,182.61,55.20621557]
[1755535275262,1e-08,182.62,182.61,60.98450331]
[1755535275424,1e-08,182.62,182.61,55.20621557]
[1755535275748,1e-08,182.62,182.61,15.10621557]
[1755535275930,1e-08,182.62,182.61,55.26621557]
[1755535276454,1e-08,182.62,182.61,66.52065467]
[1755535277855,1e-08,182.62,182.61,60.74236693]
[1755535278155,1e-08,182.62,182.61,20.58236693]
[1755535278452,5.77828775,182.62,182.58,0.03]
[1755535278631,1e-08,182.62,182.59,40.18]
[1755535278827,3.65499281,182.61,182.59,40.18]
[1755535279037,5.77828774,182.6,182.59,40.18]
[1755535279433,5.77828775,182.62,182.59,40.18]
[1755535279828,1e-08,182.62,182.59,40.18]
[1755535280046,5.77828774,182.61,182.59,40.18]
[1755535280254,0.68,182.59,182.58,0.03]
[1755535280433,10.11415287,182.59,182.58,0.03]
[1755535281053,10.11415287,182.59,182.58,40.19]
[1755535281463,4.33586513,182.59,182.58,40.19]
[1755535281633,3.65586513,182.61,182.58,40.19]
[1755535281835,3.65586513,182.6,182.58,40.19]
[1755535282036,0.68,182.61,182.58,40.19]
[1755535282734,9.10701739,182.61,182.58,45.66676284]
[1755535282940,1e-08,182.62,182.58,45.66676284]
[1755535282941,9.10701739,182.59,182.58,45.66676284]
[1755535283133,0.68,182.59,182.58,45.66676284]
[1755535283841,0.68,182.59,182.58,0.03]
[1755535284043,0.68,182.59,182.58,40.17]
[1755535284242,9.10701739,182.6,182.58,40.17]
[1755535284454,9.78701739,182.6,182.58,40.17]
[1755535285256,0.68,182.59,182.58,40.17]
[1755535285859,0.68,182.59,182.58,71.64705115]
[1755535286370,3.65979425,182.59,182.58,71.64705115]
[1755535286550,13.44681164,182.59,182.58,88.57]
[1755535286746,13.44681164,182.59,182.58,22.43]
[1755535287064,13.44681164,182.59,182.58,0.03]
[1755535287065,22.98846215,182.59,182.58,0.03]
[1755535287269,27.56670466,182.59,182.58,0.03]
[1755535287556,22.98846215,182.59,182.54,0.03]
[1755535287855,9.10701739,182.55,182.54,0.03]
[1755535288030,12.76681164,182.55,182.54,0.03]
[1755535288238,13.44681164,182.55,182.54,0.03]
[1755535288443,17.5094364,182.55,182.54,0.03]
[1755535288635,13.44681164,182.55,182.54,0.03]
[1755535288842,17.50943159,182.55,182.54,0.03]
[1755535289045,13.44681164,182.55,182.54,0.03]
[1755535289350,17.50924373,182.55,182.54,0.03]
[1755535289658,13.44681164,182.55,182.54,0.03]
[1755535289869,8.39946871,182.55,182.54,0.03]
[1755535290162,12.76681164,182.55,182.54,0.03]
[1755535290763,3.65979425,182.55,182.54,0.03]
[1755535290949,3.65979425,182.55,182.54,40.15]
[1755535291549,0.68,182.58,182.54,45.62825134]
[1755535291743,36.04809702,182.61,182.55,0.68]
[1755535291744,3.65423216,182.57,182.55,0.68]
[1755535291931,3.65423216,182.59,182.56,0.68]
[1755535292135,9.10701739,182.61,182.57,40.78]
[1755535292338,3.65441723,182.6,182.57,40.78]
[1755535292567,3.65441723,182.59,182.57,40.78]
[1755535292742,9.10701739,182.6,182.57,40.1]
[1755535293069,3.65455488,182.59,182.57,40.1]
[1755535293235,0.68,182.6,182.57,40.1]
[1755535293437,3.65448402,182.59,182.57,40.1]
[1755535293637,9.78701739,182.6,182.58,5.47705115]
[1755535293862,3.65457932,182.59,182.58,5.47705115]
[1755535294549,9.78701739,182.6,182.58,5.47705115]
[1755535296564,9.10701739,182.6,182.58,5.47705115]
[1755535297080,9.78701739,182.6,182.58,5.47705115]
[1755535297463,9.10701739,182.59,182.58,5.47705115]
[1755535297654,13.41321598,182.59,182.58,5.47705115]
[1755535297854,13.41321598,182.59,182.57,40.1]
[1755535298053,13.41321598,182.58,182.55,22.4]
[1755535298255,9.10701739,182.56,182.55,22.4]
[1755535298473,13.41321598,182.56,182.55,22.4]
[1755535298659,12.76321598,182.56,182.55,22.4]
[1755535298863,12.76321598,182.56,182.54,0.03]
[1755535299059,3.65619859,182.55,182.54,0.03]
[1755535299266,12.76321598,182.55,182.54,0.03]
[1755535299451,13.41321598,182.55,182.54,0.03]
[1755535299656,12.76321598,182.55,182.54,0.03]
[1755535301078,3.65619859,182.55,182.54,0.03]
[1755535301269,12.76321598,182.55,182.54,0.03]
[1755535301475,3.65619859,182.55,182.54,0.03]
[1755535302183,12.76321598,182.55,182.54,0.03]
[1755535302360,5.78345393,182.55,182.54,0.03]
[1755535302563,10.08457576,182.55,182.54,0.03]
[1755535302868,9.43457576,182.55,182.54,0.03]
[1755535303068,5.78345393,182.55,182.54,0.03]
[1755535303661,9.4344683,182.56,182.54,0.03]
[1755535303866,32.43345393,182.59,182.55,40.12]
[1755535304167,3.65132246,182.58,182.56,5.47765118]
[1755535304368,10.08453564,182.57,182.55,22.4]
[1755535304595,10.08453564,182.56,182.55,22.4]
[1755535306482,15.56222904,182.56,182.54,0.03]
[1755535306662,10.08453564,182.55,182.54,0.03]
[1755535309090,3.65108171,182.56,182.54,40.86]
[1755535309294,3.65108171,182.57,182.55,6.49345393]
[1755535309459,3.65108171,182.6,182.56,0.71]
[1755535309664,3.65108171,182.59,182.57,40.83]
[1755535309864,3.65108171,182.58,182.57,40.83]
[1755535310072,9.43453564,182.6,182.57,40.83]
[1755535310284,3.65108171,182.59,182.57,45.59712152]
[1755535310507,3.65108171,182.58,182.57,45.59712152]
[1755535311092,5.78345393,182.59,182.57,45.59712152]
[1755535311268,3.65331005,182.58,182.57,45.59712152]
[1755535311795,10.08676398,182.58,182.56,40.12]
[1755535311998,10.08676398,182.57,182.54,0.03]
[1755535312177,5.78345393,182.55,182.54,0.03]
[1755535312775,5.78345393,182.55,182.54,5.50825134]
[1755535314683,5.78345393,182.55,182.54,0.03]
[1755535316670,3.65070958,182.57,182.54,0.74]
[1755535316896,5.78345393,182.58,182.55,40.81]
[1755535317097,3.65070958,182.58,182.56,0.71]
[1755535317401,31.78345393,182.59,182.56,40.81]
[1755535318478,5.78345393,182.58,182.57,5.47735115]
[1755535319278,5.78345393,182.58,182.56,45.57754904]
[1755535319481,10.08657632,182.57,182.56,40.1]
[1755535319975,9.43657632,182.57,182.56,40.1]
[1755535321294,10.08657632,182.57,182.54,45.60814806]
[1755535321492,36.0485087,182.6,182.54,45.60814806]
[1755535321493,9.43657632,182.56,182.54,45.60814806]
[1755535321703,5.78345393,182.56,182.54,45.60814806]
[1755535322102,9.44027494,182.55,182.54,45.60814806]
[1755535323298,9.44027494,182.55,182.54,40.13]
[1755535323711,4.30682101,182.55,182.54,0.03]
[1755535323880,10.09027494,182.55,182.54,0.03]
[1755535324425,15.56822618,182.55,182.54,0.03]
[1755535324591,40.15674393,182.55,182.54,0.03]
[1755535326003,39.50674393,182.55,182.54,0.03]
[1755535326205,3.65682101,182.55,182.54,0.74]
[1755535326409,3.65682101,182.55,182.54,40.84]
[1755535328228,3.65682101,182.55,182.54,46.31825134]
[1755535329619,3.65682101,182.55,182.54,45.60825134]
[1755535330703,3.65682101,182.55,182.54,0.03]
[1755535330704,14.22145674,182.55,182.54,0.03]
[1755535332106,19.69940798,182.55,182.54,0.03]
[1755535332305,24.27129907,182.55,182.54,0.03]
[1755535332927,19.69940798,182.55,182.53,0.03]
[1755535333135,14.22149739,182.54,182.53,0.03]
[1755535333819,20.29725232,182.54,182.53,0.03]
[1755535334192,14.22149739,182.54,182.53,0.03]
[1755535334622,44.80080164,182.54,182.53,0.03]
[1755535334814,39.51149739,182.54,182.53,0.03]
[1755535335647,40.22149739,182.54,182.53,0.03]
[1755535335858,14.22149739,182.54,182.53,0.03]
[1755535336165,18.60521573,182.54,182.53,0.03]
[1755535336327,27.61452601,182.54,182.53,0.03]
[1755535336937,72.06264728,182.54,182.53,0.03]
[1755535337137,67.48444813,182.54,182.53,0.03]
[1755535337732,63.11632686,182.54,182.53,0.03]
[1755535338927,59.04510441,182.54,182.53,0.03]
[1755535339145,63.11091285,182.54,182.53,0.03]
[1755535339566,56.92266151,182.54,182.53,0.03]
[1755535340047,21.41762334,182.54,182.53,0.03]
[1755535340219,16.84266151,182.54,182.53,0.7]
[1755535340424,16.84266151,182.54,182.53,0.03]
[1755535340635,27.60587468,182.54,182.53,0.03]
[1755535342127,29.10666778,182.54,182.53,0.03]
[1755535342521,17.55266151,182.54,182.53,0.03]
[1755535343140,23.03091285,182.54,182.53,0.03]
[1755535344738,26.0,182.52,182.51,0.03]
[1755535344938,92.04269357,182.52,182.51,0.03]
[1755535345145,98.85027394,182.52,182.5,0.03]
[1755535345457,17.55266151,182.51,182.5,0.03]
[1755535345764,26.0,182.49,182.46,0.03]
[1755535346055,82.92266151,182.49,182.46,0.03]
[1755535346348,89.11241382,182.49,182.46,0.03]
[1755535346836,93.68018435,182.49,182.46,0.03]
[1755535347155,89.11241382,182.49,182.46,0.03]
[1755535347339,93.67837037,182.49,182.46,0.03]
[1755535347957,93.67092397,182.49,182.46,0.03]
[1755535348659,89.10496742,182.49,182.46,0.03]
[1755535348860,19.16394749,182.47,182.46,0.03]
[1755535349061,26.87718723,182.47,182.46,0.03]
[1755535349239,22.31362473,182.47,182.46,0.03]
[1755535349635,63.10362473,182.47,182.46,0.03]
[1755535349838,67.66718723,182.47,182.46,0.03]
[1755535352364,63.10362473,182.47,182.46,0.03]
[1755535353559,16.8332718,182.47,182.46,0.03]
[1755535353753,16.8332718,182.47,182.46,0.7]
[1755535353754,38.77685307,182.47,182.46,0.7]
[1755535354065,44.967206,182.47,182.46,0.03]
[1755535354580,18.967206,182.47,182.46,0.03]
[1755535354746,23.01350997,182.47,182.46,0.03]
[1755535356870,18.967206,182.47,182.46,0.03]
[1755535357167,26.0,182.46,182.45,0.03]
[1755535357355,88.15465767,182.46,182.42,0.03]
[1755535357540,26.0,182.41,182.4,0.03]
[1755535357736,38.77685307,182.41,182.4,0.03]
[1755535358339,9.45138808,182.41,182.4,0.03]
[1755535358661,5.79456707,182.41,182.4,0.75]
[1755535358970,5.79456707,182.41,182.4,0.03]
[1755535359967,5.79456707,182.41,182.4,0.75]
[1755535360167,46.50456707,182.41,182.4,0.03]
[1755535360370,50.14069938,182.41,182.39,0.03]
[1755535360603,10.08069938,182.4,182.39,0.03]
[1755535360940,9.43069938,182.4,182.39,0.03]
[1755535361266,14.91315552,182.4,182.39,0.03]
[1755535362664,15.56315552,182.4,182.39,0.03]
[1755535363261,9.43069938,182.4,182.39,0.03]
[1755535365272,35.43069938,182.4,182.39,0.03]
[1755535365467,35.43069938,182.4,182.39,0.75]
[1755535366560,36.08069938,182.4,182.39,0.03]
[1755535366770,15.56315552,182.4,182.39,0.03]